fUST/lending_fUST_20251117
["ID","MTS","AMOUNT","RATE_DAILY","PERIOD"]
[394174569,1763352644006,-151.0,0.00027397,7]
[394174570,1763352644015,-151.0,0.00027397,7]
[394174571,1763352644025,-151.0,0.00027397,7]
[394174572,1763352644034,-151.0,0.00027397,7]
[394174573,1763352644045,-151.0,0.00027397,7]
[394174574,1763352644055,-151.0,0.00027397,7]
[394174575,1763352644064,-151.0,0.00027397,7]
[394174576,1763352644073,-151.0,0.00027397,7]
[394174577,1763352644082,-152.768181,0.00027397,7]
[394174578,1763352644092,-151.0,0.00027397,7]
[394174579,1763352644101,-151.0,0.00027397,7]
[394174580,1763352644111,-151.0,0.00027397,7]
[394174581,1763352644120,-298.091965,0.00027397,7]
[394174582,1763352644129,-151.0,0.00027397,7]
[394174583,1763352644138,-151.0,0.00027397,7]
[394174584,1763352644148,-151.0,0.00027397,7]
[394174585,1763352644157,-151.0,0.00027397,7]
[394174586,1763352644167,-151.0,0.00027397,7]
[394174587,1763352644176,-151.0,0.00027397,7]
[394174588,1763352644185,-151.0,0.00027397,7]
[394174589,1763352644195,-151.0,0.00027397,7]
[394174590,1763352644204,-151.0,0.00027397,7]
[394174591,1763352644214,-151.0,0.00027397,7]
[394174592,1763352644225,-151.0,0.00027397,7]
[394174593,1763352644235,-151.0,0.00027397,7]
[394174594,1763352644244,-151.0,0.00027397,7]
[394174595,1763352644253,-151.0,0.00027397,7]
[394174596,1763352644262,-151.0,0.00027397,7]
[394174597,1763352644272,-151.0,0.00027397,7]
[394174598,1763352644281,-151.0,0.00027397,7]
[394174599,1763352644290,-151.0,0.00027397,7]
[394174600,1763352644300,-151.0,0.00027397,7]
[394174601,1763352644309,-152.884796,0.00027397,7]
[394174602,1763352644318,-151.0,0.00027397,7]
[394174603,1763352644327,-156.400286,0.00027397,7]
[394174604,1763352644337,-151.0,0.00027397,7]
[394174605,1763352644351,-151.0,0.00027397,7]
[394174606,1763352644360,-151.0,0.00027397,7]
[394174607,1763352644370,-177.917561,0.00027397,7]
[394174608,1763352644380,-151.0,0.00027397,7]
[394174609,1763352644389,-151.0,0.00027397,7]
[394174610,1763352644399,-153.064982,0.00027397,7]
[394174611,1763352644408,-151.0,0.00027397,7]
[394174612,1763352644417,-151.0,0.00027397,7]
[394174613,1763352644428,-202.398932,0.00027397,7]
[394174614,1763352644437,-202.398932,0.00027397,7]
[394174615,1763352644446,-151.0,0.00027397,7]
[394174616,1763352644455,-202.398932,0.00027397,7]
[394174617,1763352644544,-151.0,0.00027397,7]
[394174618,1763352644553,-202.398932,0.00027397,7]
[394174619,1763352644563,-202.398932,0.00027397,7]
[394174620,1763352644572,-202.398932,0.00027397,7]
[394174621,1763352644581,-202.398932,0.00027397,7]
[394174622,1763352644590,-202.398932,0.00027397,7]
[394174623,1763352644599,-202.398932,0.00027397,7]
[394174624,1763352644608,-202.398932,0.00027397,7]
[394174625,1763352644617,-202.398932,0.00027397,7]
[394174626,1763352644626,-202.398932,0.00027397,7]
[394174627,1763352644636,-202.398932,0.00027397,7]
[394174628,1763352644645,-202.398932,0.00027397,7]
[394174629,1763352644655,-202.398932,0.00027397,7]
[394174630,1763352644664,-202.398932,0.00027397,7]
[394174631,1763352644674,-151.0,0.00027397,7]
[394174632,1763352644683,-151.0,0.00027397,7]
[394174633,1763352644692,-151.0,0.00027397,7]
[394174634,1763352644701,-151.0,0.00027397,7]
[394174635,1763352644711,-151.0,0.00027397,7]
[394174636,1763352644720,-151.0,0.00027397,7]
[394174637,1763352644731,-151.0,0.00027397,7]
[394174638,1763352644741,-151.0,0.00027397,7]
[394174639,1763352644750,-152.418207,0.00027397,7]
[394174640,1763352644759,-151.0,0.00027397,7]
[394174641,1763352644768,-151.0,0.00027397,7]
[394174642,1763352644778,-151.0,0.00027397,7]
[394174643,1763352644787,-151.0,0.00027397,7]
[394174644,1763352644797,-151.0,0.00027397,7]
[394174645,1763352644807,-151.0,0.00027397,7]
[394174646,1763352644816,-151.0,0.00027397,7]
[394174647,1763352644826,-156.476949,0.00027397,7]
[394174648,1763352644835,-150.0,0.00027397,5]
[394174649,1763352644845,-1680.0,0.00027422,2]
[394174650,1763352644854,-4083.18,0.00027432,3]
[394174651,1763352644863,-2407.18,0.00027432,3]
[394174652,1763352644872,-1203.58,0.00027432,3]
[394174653,1763352644882,-601.8,0.00027432,3]
[394174654,1763352644891,-300.9,0.00027432,3]
[394174655,1763352644900,-500.0,0.0002751,2]
[394174656,1763352644909,-2000.0,0.00027616,5]
[394174657,1763352644919,-460.0,0.00027644,2]
[394174658,1763352644928,-2000.0,0.00027716,5]
[394174659,1763352644937,-600.0,0.00027716,5]
[394174660,1763352644948,-500.0,0.00027784,2]
[394174661,1763352644957,-151.0,0.000278,15]
[394174662,1763352644966,-2992.86421681,0.00027865,2]
[394174663,1763352644975,-151.0,0.000279,20]
[394174664,1763352644985,-250.0,0.00027945,5]
[394174665,1763352644994,-151.0,0.00027955,7]
[394174666,1763352645003,-151.0,0.00027955,7]
[394174667,1763352645012,-151.0,0.00027955,7]
[394174668,1763352645021,-151.0,0.00027955,7]
[394174669,1763352645031,-151.0,0.00027955,7]
[394174670,1763352645039,-227.49909,0.00027955,7]
[394174671,1763352645049,-227.49909,0.00027955,7]
[394174672,1763352645059,-227.49909,0.00027955,7]
[394174673,1763352645068,-227.49909,0.00027955,7]
[394174674,1763352645077,-151.0,0.00027955,7]
[394174675,1763352645087,-153.777754,0.00027955,7]
[394174676,1763352645096,-159.241872,0.00027955,7]
[394174677,1763352645105,-157.809794,0.00027955,7]
[394174678,1763352645114,-151.0,0.00027955,7]
[394174679,1763352645124,-151.0,0.00027955,7]
[394174680,1763352645133,-151.0,0.00027956,7]
[394174681,1763352645142,-151.0,0.00027956,7]
[394174682,1763352645152,-151.0,0.00027956,7]
[394174683,1763352645162,-153.526501,0.00027956,7]
[394174684,1763352645171,-151.0,0.00027956,7]
[394174685,1763352645181,-151.0,0.00027956,7]
[394174686,1763352645190,-151.0,0.00027956,7]
[394174687,1763352645199,-151.0,0.00027956,7]
[394174688,1763352645208,-162.920668,0.00027956,7]
[394174689,1763352645218,-151.0,0.00027956,7]
[394174690,1763352645227,-151.0,0.00027956,7]
[394174691,1763352645236,-155.183638,0.00027956,7]
[394174692,1763352645246,-151.0,0.00027956,7]
[394174693,1763352645256,-227.49909,0.00027956,7]
[394174694,1763352645266,-227.49909,0.00027956,7]
[394174695,1763352645276,-227.49909,0.00027956,7]
[394174696,1763352645286,-227.49909,0.00027956,7]
[394174697,1763352645297,-197.929447,0.00027956,7]
[394174698,1763352645307,-197.929447,0.00027956,7]
[394174699,1763352645315,-197.929447,0.00027956,7]
[394174700,1763352645324,-197.929443,0.00027956,7]
[394174701,1763352645333,-151.0,0.00027956,7]
[394174702,1763352645342,-271.67134,0.00027956,7]
[394174703,1763352645354,-151.0,0.00027956,7]
[394174704,1763352645363,-271.67134,0.00027956,7]
[394174705,1763352645372,-271.67134,0.00027956,7]
[394174706,1763352645381,-271.671339,0.00027956,7]
[394174707,1763352645391,-151.0,0.00027956,7]
[394174708,1763352645400,-251.495585,0.00027956,7]
[394174709,1763352645409,-251.495585,0.00027956,7]
[394174710,1763352645419,-251.495585,0.00027956,7]
[394174711,1763352645427,-251.495585,0.00027956,7]
[394174712,1763352645436,-151.0,0.00027963,7]
[394174713,1763352645445,-154.623809,0.00027963,7]
[394174714,1763352645453,-151.0,0.00027963,7]
[394174715,1763352645464,-151.0,0.00027965,7]
[394174716,1763352645473,-151.0,0.00027965,7]
[394174717,1763352645482,-151.0,0.00027965,7]
[394174718,1763352645491,-151.0,0.00027965,7]
[394174719,1763352645500,-151.0,0.00027965,7]
[394174720,1763352645509,-206.521111,0.00027965,7]
[394174721,1763352645518,-151.0,0.00027965,7]
[394174722,1763352645529,-151.0,0.00027965,7]
[394174723,1763352645539,-206.521111,0.00027965,7]
[394174724,1763352645549,-151.0,0.00027965,7]
[394174725,1763352645561,-206.521111,0.00027965,7]
[394174726,1763352645582,-206.521111,0.00027965,7]
[394174727,1763352645591,-151.0,0.00027965,7]
[394174728,1763352645600,-151.0,0.00027965,7]
[394174729,1763352645610,-151.0,0.00027965,7]
[394174730,1763352645619,-151.0,0.00027965,7]
[394174731,1763352645629,-151.0,0.00027965,7]
[394174732,1763352645637,-194.361192,0.00027965,7]
[394174733,1763352645646,-151.0,0.00027965,7]
[394174734,1763352645657,-150.0,0.00027966,2]
[394174735,1763352645666,-624.42180306,0.00027973,4]
[394174736,1763352645678,-151.0,0.0002798,7]
[394174737,1763352645687,-151.0,0.0002798,7]
[394174739,1763352645696,-151.0,0.0002798,7]
[394174740,1763352645704,-151.0,0.0002798,7]
[394174741,1763352645713,-151.0,0.0002798,7]
[394174742,1763352645721,-151.0,0.0002798,7]
[394174743,1763352645730,-151.0,0.0002798,7]
[394174744,1763352645740,-151.0,0.0002798,7]
[394174745,1763352645749,-151.0,0.0002798,7]
[394174746,1763352645757,-234.763452,0.0002798,7]
[394174747,1763352645767,-227.49909,0.0002798,7]
[394174748,1763352645775,-227.49909,0.0002798,7]
[394174749,1763352645784,-227.49909,0.0002798,7]
[394174750,1763352645793,-227.49909,0.0002798,7]
[394174751,1763352645802,-151.0,0.0002798,2]
[394174752,1763352645811,-151.0,0.0002798,2]
[394174753,1763352645820,-151.0,0.0002798,2]
[394174754,1763352645829,-151.0,0.0002798,7]
[394174755,1763352645837,-261.583903,0.0002798,7]
[394174756,1763352645846,-151.0,0.0002798,7]
[394174757,1763352645855,-151.0,0.0002798,7]
[394174758,1763352645863,-151.0,0.0002798,7]
[394174759,1763352645872,-151.0,0.0002798,7]
[394174760,1763352645882,-151.0,0.0002798,7]
[394174761,1763352645891,-151.0,0.0002798,7]
[394174762,1763352645904,-252.557625,0.0002798,7]
[394174763,1763352645913,-252.557625,0.0002798,7]
[394174764,1763352645922,-252.557625,0.0002798,7]
[394174765,1763352645931,-252.557629,0.0002798,7]
[394174766,1763352645939,-151.0,0.0002798,7]
[394174767,1763352645949,-163.12784728,0.0002798,7]
[394174768,1763352645959,-498.608934,0.0002798,7]
[394174769,1763352645968,-498.608934,0.0002798,7]
[394174770,1763352645978,-498.608934,0.0002798,7]
[394174771,1763352645987,-498.608942,0.0002798,7]
[394174772,1763352645997,-151.0,0.0002798,7]
[394174773,1763352646006,-151.0,0.0002798,7]
[394174774,1763352646016,-151.0,0.0002798,7]
[394174775,1763352646028,-151.0,0.0002798,7]
[394174776,1763352646038,-151.0,0.0002798,7]
[394174777,1763352646049,-299.542451,0.0002798,7]
[394174778,1763352646059,-151.0,0.0002798,7]
[394174779,1763352646068,-202.398932,0.0002798,7]
[394174780,1763352646077,-202.398932,0.0002798,7]
[394174781,1763352646086,-202.398932,0.0002798,7]
[394174782,1763352646095,-202.398929,0.0002798,7]
[394174783,1763352646104,-156.241144,0.0002799,7]
[394174784,1763352646115,-151.850159,0.0002799,7]
[394174785,1763352646126,-151.0,0.0002799,7]
[394174786,1763352646135,-151.470655,0.0002799,7]
[394174787,1763352646144,-151.0,0.0002799,7]
[394174788,1763352646156,-151.0,0.0002799,7]
[394174789,1763352646165,-151.0,0.0002799,7]
[394174790,1763352646175,-151.0,0.0002799,7]
[394174791,1763352646184,-227.49909,0.0002799,7]
[394174792,1763352646193,-227.49909,0.0002799,7]
[394174793,1763352646203,-227.49909,0.0002799,7]
[394174794,1763352646212,-227.49909,0.0002799,7]
[394174795,1763352646221,-151.0,0.0002799,7]
[394174796,1763352646231,-289.870986,0.0002799,7]
[394174797,1763352646240,-186.367292,0.0002799,7]
[394174798,1763352646249,-186.367292,0.0002799,7]
[394174799,1763352646258,-186.367292,0.0002799,7]
[394174800,1763352646268,-186.367289,0.0002799,7]
[394174802,1763352646278,-151.0,0.0002799,7]
[394174803,1763352646287,-151.0,0.0002799,7]
[394174804,1763352646296,-151.0,0.0002799,2]
[394174805,1763352646305,-151.0,0.0002799,2]
[394174806,1763352646314,-151.0,0.0002799,2]
[394174807,1763352646324,-151.0,0.0002799,7]
[394174809,1763352646333,-155.973996,0.0002799,7]
[394174810,1763352646344,-151.0,0.0002799,7]
[394174811,1763352646355,-151.0,0.0002799,7]
[394174815,1763352646434,-151.0,0.0002799,7]
[394174817,1763352646444,-151.0,0.0002799,7]
[394174819,1763352646454,-151.0,0.0002799,7]
[394174820,1763352646463,-151.0,0.0002799,7]
[394174822,1763352646472,-151.0,0.0002799,7]
[394174824,1763352646481,-206.521111,0.0002799,7]
[394174826,1763352646491,-151.0,0.0002799,7]
[394174828,1763352646500,-244.962095,0.0002799,7]
[394174829,1763352646509,-206.521111,0.0002799,7]
[394174831,1763352646519,-151.0,0.0002799,7]
[394174833,1763352646527,-206.521111,0.0002799,7]
[394174835,1763352646536,-206.521111,0.0002799,7]
[394174837,1763352646545,-151.0,0.0002799,7]
[394174838,1763352646554,-151.0,0.0002799,7]
[394174840,1763352646564,-151.0,0.0002799,7]
[394174842,1763352646573,-151.0,0.0002799,7]
[394174844,1763352646582,-151.0,0.0002799,7]
[394174846,1763352646592,-109985.87618101,0.0002799,30]
[394174848,1763352646601,-1469.03,0.00028,2]
[394174849,1763352646610,-2992.86421681,0.00028047,2]
[394174850,1763352646619,-500.0,0.00028058,2]
[394174851,1763352646628,-500.0,0.00028074,2]
[394174852,1763352646637,-2500.0,0.00028164,5]
[394174853,1763352646646,-560.0,0.00028192,2]
[394174854,1763352646656,-1431.38695596,0.00028264,5]
[394174855,1763352646666,-450.63260107,0.00028264,5]
[394174856,1763352646675,-500.0,0.00028332,2]
[394174857,1763352646684,-2992.86421681,0.00028375,2]
[394174858,1763352646693,-209.43,0.000284,7]
[394174859,1763352646702,-7144.56,0.000284,7]
[394174860,1763352646711,-373.19050364,0.00028443,2]
[394174863,1763352646721,-456.59346641,0.00028493,5]
[394174866,1763352646729,-300.0,0.00028559,30]
[394174868,1763352646738,-300.0,0.00028559,30]
[394174870,1763352646747,-300.0,0.00028559,30]
[394174872,1763352646755,-300.0,0.00028559,30]
[394174874,1763352646764,-300.0,0.00028559,30]
[394174876,1763352646773,-300.0,0.00028559,30]
[394174877,1763352646782,-300.0,0.00028559,30]
[394174878,1763352646791,-300.0,0.00028559,30]
[394174879,1763352646800,-300.0,0.00028559,30]
[394174880,1763352646808,-300.0,0.00028559,30]
[394174881,1763352646817,-300.0,0.00028559,30]
[394174882,1763352646826,-300.0,0.00028559,30]
[394174883,1763352646835,-300.0,0.00028559,30]
[394174884,1763352646843,-300.0,0.00028559,30]
[394174885,1763352646852,-300.0,0.00028559,30]
[394174886,1763352646860,-600.0,0.00028559,30]
[394174887,1763352646869,-500.0,0.00028606,2]
[394174888,1763352646878,-2992.86421681,0.00028698,2]
[394174889,1763352646886,-3000.0,0.00028712,5]
[394174890,1763352646896,-660.0,0.0002874,2]
[394174891,1763352646906,-373.19050364,0.00028772,2]
[394174892,1763352646915,-204.0,0.00028858,2]
[394174893,1763352646924,-500.0,0.0002888,2]
[394174894,1763352646933,-373.19050364,0.00029101,2]
[394174895,1763352646942,-500.0,0.00029154,2]
[394174896,1763352646951,-500.0,0.0002917,2]
[394174897,1763352646959,-930.52966827,0.0002926,5]
[394174898,1763352646968,-243.32266703,0.00029288,2]
[394174899,1763352646977,-500.0,0.00029428,2]
[394174900,1763352646986,-373.19050364,0.00029431,2]
[394174901,1763352646994,-587.0,0.00029602,2]
[394174902,1763352647003,-362.7,0.000297,14]
[394174903,1763352647012,-636.91831408,0.00029702,2]
[394174904,1763352647021,-373.56369415,0.0002976,2]
[394174905,1763352647030,-1419.0,0.00029835,2]
[394174907,1763352647039,-2000.0,0.0003,7]
[394174908,1763352647048,-1469.03,0.000301,2]
[394174909,1763352647057,-500.0,0.00030266,2]
[394174911,1763352647070,-231.0,0.00030858,2]
[394174913,1763352647079,-500.0,0.00031362,2]
[394174915,1763352647089,-720.0,0.00031415,30]
[394174917,1763352647098,-185.66243053,0.00031432,29]
[394174919,1763352647107,-190.937,0.00031432,29]
[394174921,1763352647116,-823.0,0.00032061,2]
[394174923,1763352647125,-209.43,0.000321,7]
[394174925,1763352647134,-151.0,0.00032163,31]
[394174926,1763352647143,-168.308839,0.00032163,31]
[394174928,1763352647152,-151.0,0.00032163,31]
[394174930,1763352647161,-362.7,0.000322,14]
[394174932,1763352647170,-7144.56,0.000323,7]
[394174934,1763352647179,-1469.03,0.000324,2]
[394174937,1763352647192,-500.0,0.00032458,2]
[394174939,1763352647201,-258.0,0.00032858,2]
[394174940,1763352647210,-151.0,0.00032877,31]
[394174942,1763352647219,-151.0,0.00032877,31]
[394174943,1763352647227,-262.066433,0.00032877,31]
[394174944,1763352647236,-151.0,0.00032877,31]
[394174945,1763352647245,-156.452658,0.00032877,31]
[394174946,1763352647255,-150.0,0.00032877,5]
[394174947,1763352647264,-500.0,0.00032877,7]
[394174948,1763352647273,-272.37713302,0.00032877,7]
[394174949,1763352647282,-500.0,0.00032877,7]
[394174950,1763352647291,-151.0,0.00033067,31]
[394174951,1763352647299,-203.970354,0.00033165,2]
[394174952,1763352647308,-250.0,0.00033425,5]
[394174953,1763352647317,-500.0,0.00033554,2]
[394174954,1763352647327,-199.14313278,0.000338,2]
[394174955,1763352647337,-350.0,0.00033973,5]
[394174956,1763352647348,-151.0,0.00033973,31]
[394174957,1763352647357,-227.49909,0.00033973,31]
[394174958,1763352647366,-227.49909,0.00033973,31]
[394174959,1763352647375,-227.49909,0.00033973,31]
[394174960,1763352647386,-227.499088,0.00033973,31]
[394174961,1763352647395,-150.0,0.00034071,2]
[394174962,1763352647406,-1000.0,0.00034247,5]
[394174963,1763352647416,-450.0,0.00034521,5]
[394174964,1763352647426,-864.0,0.00034556,30]
[394174965,1763352647436,-500.0,0.0003465,2]
[394174966,1763352647446,-1152.0,0.00034724,2]
[394174967,1763352647455,-285.0,0.00034858,120]
[394174968,1763352647465,-220.0,0.00035,2]
[394174969,1763352647474,-789.94,0.00035,13]
[394174970,1763352647485,-550.0,0.00035068,5]
[394174971,1763352647496,-650.0,0.00035616,5]
[394174972,1763352647507,-150.0,0.00035694,2]
[394174973,1763352647517,-209.43,0.000357,7]
[394174974,1763352647529,-500.0,0.00035746,2]
[394174975,1763352647538,-362.7,0.000358,30]
[394174976,1763352647547,-1469.03,0.000359,14]
[394174977,1763352647557,-750.0,0.00036164,5]
[394174978,1763352647566,-151.0,0.000365,15]
[394174979,1763352647575,-449.261957,0.00036637,2]
[394174980,1763352647584,-7144.56,0.000367,14]
[394174981,1763352647595,-850.0,0.00036712,5]
[394174982,1763352647604,-500.0,0.00036841,2]
[394174983,1763352647613,-312.0,0.00036858,120]
[394174984,1763352647623,-636.88460412,0.00037084,2]
[394174985,1763352647632,-550.00117152,0.0003726,5]
[394174986,1763352647642,-150.0,0.00037316,2]
[394174987,1763352647651,-1613.0,0.00037609,2]
[394174988,1763352647661,-332.90956459,0.00037876,2]
[394174989,1763352647670,-500.0,0.00037937,2]
[394174990,1763352647680,-1000.0,0.00038012,30]
[394174991,1763352647689,-150.0,0.00038325,31]
[394174992,1763352647700,-150.0,0.00038325,120]
[394174993,1763352647708,-2000.0,0.00038327,20]
[394174994,1763352647718,-16243.0677831,0.00038327,2]
[394174995,1763352647727,-151.0,0.00038327,7]
[394174996,1763352647736,-151.0,0.00038327,7]
[394174997,1763352647745,-151.0,0.00038327,7]
[394174998,1763352647754,-151.0,0.00038327,7]
[394174999,1763352647763,-151.0,0.00038327,7]
[394175000,1763352647772,-151.0,0.00038327,7]
[394175001,1763352647782,-151.0,0.00038327,7]
[394175002,1763352647791,-151.0,0.00038327,7]
[394175003,1763352647801,-151.0,0.00038327,7]
[394175004,1763352647811,-151.0,0.00038327,7]
[394175005,1763352647820,-224.738627,0.00038327,7]
[394175006,1763352647830,-151.0,0.00038327,7]
[394175007,1763352647839,-151.0,0.00038327,7]
[394175008,1763352647849,-151.0,0.00038327,7]
[394175009,1763352647859,-151.0,0.00038327,7]
[394175010,1763352647868,-151.0,0.00038327,7]
[394175011,1763352647876,-151.0,0.00038327,7]
[394175012,1763352647886,-151.0,0.00038327,7]
[394175013,1763352647895,-151.0,0.00038327,7]
[394175014,1763352647905,-293.110569,0.00038327,7]
[394175015,1763352647914,-151.0,0.00038327,7]
[394175016,1763352647923,-151.0,0.00038327,7]
[394175017,1763352647932,-151.0,0.00038327,7]
[394175018,1763352647942,-151.0,0.00038327,7]
[394175019,1763352647951,-151.0,0.00038327,7]
[394175020,1763352647960,-151.0,0.00038327,7]
[394175021,1763352647969,-151.0,0.00038327,7]
[394175022,1763352647979,-151.0,0.00038327,7]
[394175023,1763352647988,-298.417918,0.00038327,7]
[394175024,1763352647997,-151.0,0.00038327,7]
[394175025,1763352648006,-151.0,0.00038327,7]
[394175026,1763352648015,-151.0,0.00038327,7]
[394175027,1763352648024,-151.0,0.00038327,7]
[394175028,1763352648034,-151.0,0.00038327,7]
[394175029,1763352648043,-151.0,0.00038327,7]
[394175030,1763352648052,-151.0,0.00038327,7]
[394175031,1763352648061,-151.0,0.00038327,7]
[394175032,1763352648070,-151.0,0.00038327,7]
[394175033,1763352648145,-151.0,0.00038327,7]
[394175034,1763352648154,-151.0,0.00038327,7]
[394175035,1763352648164,-151.0,0.00038327,7]
[394175036,1763352648173,-151.0,0.00038327,7]
[394175037,1763352648182,-151.0,0.00038327,7]
[394175038,1763352648191,-151.0,0.00038327,7]
[394175039,1763352648200,-151.0,0.00038327,7]
[394175040,1763352648210,-151.0,0.00038327,7]
[394175041,1763352648219,-151.0,0.00038327,7]
[394175042,1763352648228,-151.0,0.00038327,7]
[394175043,1763352648237,-228.356677,0.00038327,7]
[394175044,1763352648247,-1036.71711583,0.00038356,5]
[394175045,1763352648256,-250.0,0.00038356,5]
[394175046,1763352648265,-206.56211385,0.00038709,20]
[394175047,1763352648275,-239.96187985,0.00038807,5]
[394175048,1763352648285,-163.04201071,0.00038807,5]
[394175049,1763352648295,-339.0,0.00038858,120]
[394175050,1763352648306,-150.25529448,0.00038904,5]
[394175051,1763352648316,-196.77,0.00038939,2]
[394175052,1763352648328,-202.859275,0.00039,2]
[394175053,1763352648341,-209.43,0.00039,7]
[394175054,1763352648355,-253.89987463,0.00039033,2]
[394175055,1763352648365,-151.0,0.00039065,120]
[394175056,1763352648374,-151.0,0.00039065,120]
[394175057,1763352648385,-151.0,0.00039065,120]
[394175058,1763352648394,-151.0,0.00039065,120]
[394175059,1763352648404,-151.0,0.00039065,120]
[394175060,1763352648413,-206.521111,0.00039065,7]
[394175061,1763352648423,-188.193391,0.00039065,120]
[394175062,1763352648434,-206.521111,0.00039065,7]
[394175063,1763352648443,-234.85844226,0.00039065,120]
[394175064,1763352648453,-206.521111,0.00039065,7]
[394175065,1763352648462,-206.521114,0.00039065,7]
[394175066,1763352648471,-151.0,0.00039065,120]
[394175067,1763352648480,-151.0,0.00039065,120]
[394175068,1763352648490,-218.71732,0.00039065,120]
[394175069,1763352648499,-151.0,0.00039065,120]
[394175070,1763352648509,-153.925168,0.00039065,120]
[394175071,1763352648518,-422.69258884,0.00039065,5]
[394175072,1763352648528,-203.970354,0.00039654,2]
[394175073,1763352648539,-362.7,0.000397,30]
[394175074,1763352648549,-200.0,0.0004,120]
[394175075,1763352648560,-245.96,0.00040561,2]
[394175076,1763352648570,-266.00671603,0.00040693,5]
[394175077,1763352648580,-366.0,0.00040858,120]
[394175078,1763352648591,-209.98713641,0.00041,120]
[394175079,1763352648604,-455.599,0.00041096,120]
[394175080,1763352648615,-500.0,0.00041096,31]
[394175081,1763352648625,-500.0,0.00041096,31]
[394175082,1763352648635,-500.0,0.00041096,31]
[394175083,1763352648645,-500.0,0.00041096,31]
[394175084,1763352648656,-500.0,0.00041096,31]
[394175085,1763352648666,-500.0,0.00041096,31]
[394175086,1763352648675,-500.0,0.00041096,31]
[394175087,1763352648684,-500.0,0.00041096,31]
[394175088,1763352648694,-500.0,0.00041096,31]
[394175089,1763352648703,-500.0,0.00041096,31]
[394175090,1763352648712,-500.0,0.00041096,31]
[394175091,1763352648721,-500.0,0.00041096,31]
[394175092,1763352648731,-500.0,0.00041096,31]
[394175093,1763352648741,-500.0,0.00041096,31]
[394175094,1763352648751,-500.0,0.00041096,31]
[394175095,1763352648761,-500.0,0.00041096,31]
[394175096,1763352648771,-537.18140896,0.00041096,31]
[394175097,1763352648780,-500.0,0.00041096,31]
[394175098,1763352648790,-500.0,0.00041096,31]
[394175099,1763352648799,-500.0,0.00041096,31]
[394175100,1763352648809,-500.0,0.00041096,31]
[394175101,1763352648818,-500.0,0.00041096,31]
[394175102,1763352648828,-500.0,0.00041096,31]
[394175103,1763352648837,-500.0,0.00041096,31]
[394175104,1763352648847,-500.0,0.00041096,31]
[394175105,1763352648856,-500.0,0.00041096,31]
[394175106,1763352648866,-500.0,0.00041096,31]
[394175107,1763352648876,-500.0,0.00041096,31]
[394175108,1763352648886,-500.0,0.00041096,31]
[394175109,1763352648896,-500.0,0.00041096,31]
[394175110,1763352648907,-500.0,0.00041096,31]
[394175111,1763352648917,-500.0,0.00041096,31]
[394175112,1763352648928,-500.0,0.00041096,31]
[394175113,1763352648938,-1000.0,0.00041813,90]
[394175114,1763352648949,-244.0,0.00041813,90]
[394175115,1763352648958,-151.0,0.000419,120]